bitfinex-derivatives/quotes_BTCF0:USTF0_20251115
["timestamp","ask_amount","ask_price","bid_price","bid_amount"]
[1763208249877,0.19618991,95688.0,95687.0,0.04369]
[1763208250080,0.15880915,95688.0,95687.0,0.04369]
[1763208251783,0.15880915,95688.0,95687.0,0.04569]
[1763208252384,0.15880915,95688.0,95687.0,0.04469]
[1763208252684,0.17209915,95688.0,95687.0,0.02313]
[1763208252881,0.17209915,95688.0,95687.0,0.04467]
[1763208253685,0.15880915,95688.0,95687.0,0.04467]
[1763208254985,0.17209915,95688.0,95687.0,0.04467]
[1763208265383,0.15880915,95688.0,95687.0,0.04467]
[1763208265983,0.17209915,95688.0,95687.0,0.04467]
[1763208270496,0.15880915,95688.0,95687.0,0.04467]
[1763208275492,0.17189915,95688.0,95687.0,0.04467]
[1763208277102,0.15880915,95688.0,95687.0,0.04467]
[1763208277802,0.15880915,95688.0,95687.0,0.76627]
[1763208278900,0.00015676,95692.0,95691.0,0.1478415]
[1763208279097,0.04311,95718.0,95717.0,0.04326]
[1763208279300,0.04311,95718.0,95717.0,0.3258]
[1763208279609,0.04311,95718.0,95688.0,0.44714768]
[1763208279610,0.04311,95696.0,95695.0,0.40406]
[1763208279896,0.13633511,95696.0,95695.0,0.41726]
[1763208280102,0.13633511,95696.0,95695.0,0.45487906]
[1763208280103,0.11521511,95696.0,95695.0,0.45487906]
[1763208280401,0.00015676,95705.0,95695.0,0.45487906]
[1763208280402,0.04326676,95705.0,95704.0,0.04326]
[1763208280601,0.04326676,95705.0,95704.0,0.40406]
[1763208280802,0.15694757,95705.0,95704.0,0.40406]
[1763208282305,0.11383757,95705.0,95704.0,0.40406]
[1763208282905,0.11383757,95705.0,95704.0,0.44167906]
[1763208283106,0.11383757,95705.0,95704.0,0.40406]
[1763208283497,0.11383757,95705.0,95704.0,0.40606]
[1763208284200,0.11383757,95705.0,95704.0,0.40506]
[1763208284697,0.11383757,95705.0,95704.0,0.40606]
[1763208285808,0.15694757,95705.0,95704.0,0.40606]
[1763208286207,0.15694757,95705.0,95704.0,0.40506]
[1763208286408,0.13495757,95705.0,95704.0,0.40606]
[1763208286800,0.13495757,95705.0,95704.0,0.40506]
[1763208287008,0.13495757,95705.0,95704.0,0.40606]
[1763208287704,0.15694757,95705.0,95704.0,0.40606]
[1763208288805,0.11383757,95705.0,95704.0,0.40606]
[1763208290513,0.13495757,95705.0,95704.0,0.40606]
[1763208291611,0.11383757,95705.0,95704.0,0.40606]
[1763208292813,0.13495757,95705.0,95704.0,0.40606]
[1763208293411,0.15694757,95705.0,95704.0,0.40606]
[1763208293810,0.17003757,95705.0,95704.0,0.3628]
[1763208295426,0.17003757,95705.0,95704.0,0.38409]
[1763208295917,0.17003757,95705.0,95704.0,0.38309]
[1763208296325,0.17003757,95705.0,95704.0,0.38209]
[1763208297728,0.17003757,95705.0,95704.0,0.40406]
[1763208300115,0.15694757,95705.0,95704.0,0.40406]
[1763208302330,0.11383757,95705.0,95704.0,0.40406]
[1763208302728,0.07883757,95705.0,95704.0,0.40406]
[1763208303426,0.0597679,95705.0,95704.0,0.40406]
[1763208304228,0.0597679,95705.0,95704.0,0.40506]
[1763208305225,0.0597679,95705.0,95704.0,0.40606]
[1763208306121,0.00015676,95714.0,95713.0,0.04337]
[1763208306322,0.00015676,95714.0,95713.0,0.40417]
[1763208306523,0.11348658,95714.0,95713.0,0.40417]
[1763208307332,0.15798658,95714.0,95713.0,0.40417]
[1763208308028,0.15798658,95714.0,95713.0,0.40517]
[1763208308325,0.15798658,95714.0,95713.0,0.40617]
[1763208308925,0.15798658,95714.0,95713.0,0.40517]
[1763208309823,0.11348658,95714.0,95713.0,0.40417]
[1763208310031,0.11348658,95714.0,95713.0,0.40517]
[1763208310828,0.13477658,95714.0,95713.0,0.40517]
[1763208311828,0.15798658,95714.0,95713.0,0.40517]
[1763208313840,0.15798658,95714.0,95713.0,0.3618]
[1763208314521,0.15798658,95714.0,95713.0,0.3268]
[1763208316533,0.15798658,95714.0,95713.0,0.001]
[1763208316836,0.04449,95695.0,95694.0,0.08018906]
[1763208317038,0.04449,95695.0,95694.0,0.04257]
[1763208317335,0.04449,95691.0,95690.0,0.04330266]
[1763208317639,0.15895034,95691.0,95690.0,0.04330266]
[1763208317840,0.15895034,95691.0,95690.0,0.00073266]
[1763208318134,0.18150517,95691.0,95690.0,0.02206266]
[1763208318339,0.18150517,95691.0,95690.0,0.00073266]
[1763208318530,0.18050517,95691.0,95690.0,0.00073266]
[1763208319238,0.18050517,95691.0,95686.0,0.00015676]
[1763208319239,0.04249,95687.0,95686.0,0.00015676]
[1763208319443,0.06504483,95687.0,95686.0,0.00015676]
[1763208319634,0.18272154,95687.0,95686.0,0.00015676]
[1763208323551,0.18272154,95687.0,95686.0,0.40352676]
[1763208324243,0.16016671,95687.0,95686.0,0.40352676]
[1763208324445,0.16016671,95687.0,95686.0,0.40452676]
[1763208328846,0.16016671,95687.0,95686.0,0.40352676]
[1763208329048,0.16016671,95687.0,95686.0,0.40452676]
[1763208329848,0.16016671,95687.0,95686.0,0.40352676]
[1763208330049,0.16016671,95687.0,95686.0,0.40452676]
[1763208331955,0.11767671,95687.0,95686.0,0.40452676]
[1763208332356,0.11498244,95689.0,95688.0,0.05942]
[1763208332553,0.00219803,95690.0,95689.0,0.04588]
[1763208332954,0.11718047,95690.0,95689.0,0.04588]
[1763208333956,0.11498244,95690.0,95689.0,0.04588]
[1763208334152,0.07998244,95690.0,95689.0,0.04588]
[1763208334358,0.0445793,95690.0,95689.0,0.04588]
[1763208334555,0.03501,95706.0,95690.0,0.00073266]
[1763208334857,0.15943283,95705.0,95700.0,0.3608]
[1763208335057,0.15943283,95705.0,95700.0,0.36153266]
[1763208335458,0.04559,95701.0,95700.0,0.36153266]
[1763208335958,0.16681412,95701.0,95700.0,0.36153266]
[1763208336549,0.16681412,95701.0,95700.0,0.36253266]
[1763208354787,0.16681412,95701.0,95700.0,0.32753266]
[1763208359890,0.16681412,95701.0,95700.0,0.00173266]
[1763208360092,0.0442,95687.0,95686.0,0.00015676]
[1763208360483,0.15853028,95687.0,95686.0,0.00015676]
[1763208361383,0.15853028,95687.0,95686.0,0.00115676]
[1763208362193,0.15853028,95687.0,95686.0,0.04554676]
[1763208362391,0.15853028,95687.0,95686.0,0.04654676]
[1763208363486,0.13635028,95687.0,95686.0,0.04654676]
[1763208365179,0.15853028,95687.0,95686.0,0.04654676]
[1763208365586,0.11433028,95687.0,95686.0,0.04654676]
[1763208365991,0.15566475,95699.0,95698.0,0.04439]
[1763208366291,0.0442,95699.0,95698.0,0.40519]
[1763208366691,0.15403414,95699.0,95698.0,0.40519]
[1763208367283,0.15403414,95699.0,95698.0,0.40619]
[1763208375391,0.15403414,95699.0,95698.0,0.40519]
[1763208375588,0.15403414,95699.0,95698.0,0.40619]
[1763208381793,0.13185414,95699.0,95698.0,0.40619]
[1763208381989,0.10983414,95699.0,95698.0,0.40619]
[1763208382206,0.13268414,95699.0,95698.0,0.40619]
[1763208382505,0.1377962,95699.0,95698.0,0.40619]
[1763208382801,0.1593662,95699.0,95698.0,0.40619]
[1763208384600,0.1377962,95699.0,95698.0,0.40619]
[1763208387800,0.1149462,95699.0,95698.0,0.40619]
[1763208388208,0.16466422,95711.0,95710.0,0.04403]
[1763208388508,0.04386,95711.0,95710.0,0.04403]
[1763208388806,0.15361258,95711.0,95710.0,0.04403]
[1763208391808,0.13111258,95711.0,95710.0,0.04403]
[1763208392609,0.15361258,95711.0,95710.0,0.04403]
[1763208395710,0.04386,95709.0,95708.0,0.3608]
[1763208396112,0.15650926,95709.0,95708.0,0.3608]
[1763208397001,0.15650926,95709.0,95708.0,0.38354]
[1763208398712,0.15650926,95709.0,95708.0,0.40483]
[1763208406414,0.15650926,95709.0,95708.0,0.3608]
[1763208408504,0.15650926,95709.0,95708.0,0.38354]
[1763208409118,0.15650926,95709.0,95708.0,0.3608]
[1763208410114,0.04386,95699.0,95698.0,0.40483]
[1763208410511,0.16026565,95699.0,95698.0,0.40483]
[1763208411806,0.16026565,95699.0,95698.0,0.40583]
[1763208418725,0.11640565,95699.0,95698.0,0.40583]
[1763208418924,0.16005565,95699.0,95698.0,0.40583]
[1763208420318,0.13837565,95699.0,95698.0,0.40583]
[1763208420621,0.11640565,95699.0,95698.0,0.40583]
[1763208420821,0.11640565,95699.0,95698.0,0.44341388]
[1763208421219,0.16003678,95707.0,95698.0,0.39938388]
[1763208421421,0.04365,95707.0,95706.0,0.40538]
[1763208421820,0.16038753,95707.0,95706.0,0.40538]
[1763208427715,0.16038753,95707.0,95706.0,0.3608]
[1763208431224,0.16038753,95707.0,95706.0,0.40531]
[1763208439122,0.16038753,95707.0,95706.0,0.3608]
[1763208439528,0.16038753,95707.0,95706.0,0.38411]
[1763208440226,0.16038753,95707.0,95706.0,0.40555]
[1763208440530,0.19783293,95707.0,95706.0,0.40555]
[1763208441026,0.16038753,95707.0,95706.0,0.40555]
[1763208443427,0.16038753,95707.0,95706.0,0.3608]
[1763208443832,0.16038753,95707.0,95706.0,0.38411]
[1763208444231,0.16038753,95707.0,95706.0,0.3608]
[1763208444438,0.04266,95692.0,95691.0,0.04475]
[1763208444830,0.16394749,95692.0,95691.0,0.04475]
[1763208445734,0.16394749,95692.0,95691.0,0.04575]
[1763208446037,0.16394749,95692.0,95691.0,0.04675]
[1763208446430,0.16394749,95692.0,95691.0,0.04575]
[1763208447032,0.16394749,95692.0,95691.0,0.04475]
[1763208447233,0.16394749,95692.0,95691.0,0.02331]
[1763208447434,0.16394749,95692.0,95691.0,0.04475]
[1763208448336,0.16394749,95692.0,95688.0,0.3608]
[1763208448337,0.04459,95689.0,95688.0,0.40489]
[1763208448839,0.16379183,95689.0,95688.0,0.40489]
[1763208451039,0.16379183,95689.0,95688.0,0.44251026]
[1763208453437,0.16379183,95689.0,95688.0,0.40489]
[1763208454138,0.16379183,95689.0,95688.0,0.44250457]
[1763208454335,0.11920183,95689.0,95688.0,0.44250458]
[1763208454541,0.11920183,95689.0,95688.0,0.40489]
[1763208455641,0.14228183,95689.0,95688.0,0.40489]
[1763208456141,0.16379183,95689.0,95688.0,0.40489]
[1763208456341,0.14228183,95689.0,95688.0,0.40589]
[1763208457739,0.16379183,95689.0,95688.0,0.40589]
[1763208459741,0.14228183,95689.0,95688.0,0.40589]
[1763208460640,0.11920183,95689.0,95688.0,0.40589]
[1763208461138,0.16379183,95689.0,95688.0,0.40589]
[1763208476946,0.16379183,95689.0,95688.0,0.38401]
[1763208477453,0.16379183,95689.0,95688.0,0.40589]
[1763208481053,0.16379183,95689.0,95688.0,0.40489]
[1763208481256,0.16379183,95689.0,95688.0,0.40589]
[1763208482253,0.16379183,95689.0,95688.0,0.38401]
[1763208482461,0.16379183,95689.0,95688.0,0.3618]
[1763208483651,0.16379183,95689.0,95688.0,0.3608]
[1763208483856,0.04531,95687.0,95686.0,0.00015676]
[1763208484242,0.04531,95675.0,95674.0,0.08170948]
[1763208484449,0.04531,95671.0,95670.0,0.42037948]
[1763208484660,0.04531,95671.0,95670.0,0.38272]
[1763208484854,0.15803711,95671.0,95670.0,0.3608]
[1763208487650,0.16966979,95671.0,95670.0,0.3608]
[1763208495764,0.16966979,95671.0,95670.0,0.38345]
[1763208495954,0.16966979,95671.0,95670.0,0.3608]
[1763208496855,0.16966979,95671.0,95670.0,0.38363]
[1763208498055,0.16966979,95671.0,95670.0,0.40572]
[1763208499359,0.16966979,95671.0,95670.0,0.40672]
[1763208500054,0.16966979,95671.0,95670.0,0.40572]
[1763208500661,0.16966979,95671.0,95670.0,0.3608]
[1763208501460,0.16966979,95671.0,95670.0,0.38363]
[1763208501767,0.16966979,95671.0,95670.0,0.40572]
[1763208502860,0.11272711,95671.0,95670.0,0.40572]
[1763208503161,0.02166,95671.0,95670.0,0.40572]
[1763208503668,0.13323392,95671.0,95670.0,0.40572]
[1763208504060,0.11157392,95671.0,95670.0,0.40572]
[1763208504467,0.03299266,95673.0,95672.0,0.04492]
[1763208504771,0.13822474,95673.0,95672.0,0.04492]
[1763208505071,0.14981589,95673.0,95672.0,0.04492]
[1763208505263,0.17183589,95673.0,95672.0,0.04492]
[1763208507869,0.17183589,95673.0,95672.0,0.04592]
[1763208508965,0.17183589,95673.0,95672.0,0.04492]
[1763208510161,0.11656474,95673.0,95672.0,0.04492]
[1763208510571,0.04619,95673.0,95672.0,0.04492]
[1763208510961,0.15590219,95673.0,95672.0,0.04492]
[1763208511463,0.15590219,95673.0,95672.0,0.04592]
[1763208515173,0.15590219,95673.0,95672.0,0.04492]
[1763208518879,0.15590219,95673.0,95672.0,0.04592]
[1763208520270,0.15590219,95673.0,95672.0,0.04492]
[1763208520475,0.10971219,95673.0,95672.0,0.04592]
[1763208520778,0.13664472,95677.0,95672.0,0.01146]
[1763208520981,0.15954472,95677.0,95676.0,0.04255]
[1763208521181,0.04619,95677.0,95676.0,0.04255]
[1763208521375,0.15652604,95677.0,95676.0,0.04255]
[1763208536489,0.04619,95671.0,95670.0,0.40335]
[1763208536791,0.15964982,95671.0,95670.0,0.40335]
[1763208537180,0.15964982,95671.0,95670.0,0.3608]
[1763208538588,0.15964982,95671.0,95670.0,0.38189]
[1763208539498,0.15964982,95671.0,95670.0,0.40461]
[1763208543396,0.11345982,95671.0,95670.0,0.40461]
[1763208543802,0.10909138,95676.0,95675.0,0.04604]
[1763208543995,0.13026138,95676.0,95675.0,0.04604]
[1763208544190,0.04335,95676.0,95675.0,0.04604]
[1763208544397,0.1532237,95676.0,95675.0,0.04604]
[1763208547705,0.1662037,95676.0,95675.0,0.04604]
[1763208548202,0.1662037,95676.0,95675.0,0.04704]
[1763208549999,0.1662037,95676.0,95675.0,0.001]
[1763208550404,0.1662037,95676.0,95675.0,0.02432]
[1763208550601,0.1662037,95676.0,95675.0,0.04704]
[1763208553207,0.1662037,95676.0,95675.0,0.04604]
[1763208555512,0.1310437,95676.0,95675.0,0.04604]
[1763208555905,0.1536837,95676.0,95675.0,0.04604]
[1763208557601,0.1668437,95676.0,95675.0,0.04604]
[1763208560110,0.1668437,95676.0,95675.0,0.40684]
[1763208567612,0.1668437,95676.0,95675.0,0.38412]
[1763208567818,0.1668437,95676.0,95675.0,0.3608]
[1763208568611,0.1668437,95676.0,95675.0,0.3628]
[1763208569213,0.1668437,95676.0,95675.0,0.3618]
[1763208569416,0.1668437,95676.0,95675.0,0.38247]
[1763208570022,0.1668437,95676.0,95675.0,0.3608]
[1763208571724,0.1668437,95676.0,95675.0,0.38247]
[1763208572022,0.1668437,95676.0,95675.0,0.4048]
[1763208577826,0.1668437,95676.0,95675.0,0.38247]
[1763208578020,0.1668437,95676.0,95675.0,0.4048]
[1763208578221,0.1668437,95676.0,95675.0,0.3608]
[1763208578823,0.1668437,95676.0,95675.0,0.38247]
[1763208579827,0.1668437,95676.0,95675.0,0.4048]
[1763208580027,0.1668437,95676.0,95675.0,0.3608]
[1763208586227,0.1668437,95676.0,95667.0,0.00012281]
[1763208586228,0.05506,95668.0,95667.0,0.00012281]
[1763208586530,0.20858944,95668.0,95667.0,0.00012281]
[1763208587027,0.17108868,95668.0,95667.0,0.00012281]
[1763208587329,0.17108868,95668.0,95667.0,0.00112281]
[1763208588131,0.17108868,95668.0,95667.0,0.00012281]
[1763208588324,0.20856287,95668.0,95667.0,0.00012281]
[1763208589122,0.20856287,95668.0,95648.0,0.01307]
[1763208589123,0.12666868,95668.0,95648.0,0.01307]
[1763208589428,0.00219803,95660.0,95659.0,0.044]
[1763208589832,0.11788052,95660.0,95659.0,0.044]
[1763208590125,0.11796853,95660.0,95659.0,0.044]
[1763208590535,0.11796853,95660.0,95659.0,0.045]
[1763208591121,0.11796853,95660.0,95659.0,0.046]
[1763208604936,0.1157705,95660.0,95659.0,0.046]
[1763208612340,0.0807705,95660.0,95659.0,0.046]
[1763208612535,0.0457705,95660.0,95659.0,0.08365948]
[1763208614138,0.0457705,95660.0,95659.0,0.18827598]
[1763208614336,0.04592676,95680.0,95679.0,0.045]
[1763208614552,0.04812479,95680.0,95679.0,0.045]
[1763208614730,0.16617506,95680.0,95679.0,0.045]
[1763208615540,0.16622861,95680.0,95679.0,0.045]
[1763208615837,0.14297861,95680.0,95679.0,0.045]
[1763208616242,0.16622861,95680.0,95679.0,0.045]
[1763208619946,0.14078058,95680.0,95679.0,0.045]
[1763208620151,0.11826058,95680.0,95679.0,0.045]
[1763208620935,0.11826058,95680.0,95673.0,0.03760623]
[1763208620936,0.04577,95674.0,95673.0,0.06016623]
[1763208621140,0.04577,95671.0,95670.0,0.04515676]
[1763208621650,0.16686119,95671.0,95670.0,0.04515676]
[1763208624250,0.16686119,95671.0,95670.0,0.04615676]
[1763208624640,0.12109119,95671.0,95670.0,0.05921676]
[1763208625147,0.12109119,95671.0,95670.0,0.00115676]
[1763208625148,0.04577,95671.0,95670.0,0.00115676]
[1763208625351,0.40657,95671.0,95670.0,0.00115676]
[1763208625542,0.5199649,95671.0,95670.0,0.04615676]
[1763208626050,0.1591649,95671.0,95670.0,0.04615676]
[1763208626551,0.1591649,95671.0,95670.0,0.04515676]
[1763208626850,0.1591649,95671.0,95670.0,0.04615676]
[1763208627440,0.1591649,95671.0,95670.0,0.04515676]
[1763208628251,0.1591649,95671.0,95670.0,0.04615676]
[1763208629352,0.1591649,95671.0,95670.0,0.02371676]
[1763208629647,0.1591649,95671.0,95670.0,0.00115676]
[1763208633552,0.1591649,95671.0,95670.0,0.00015676]
[1763208634054,0.1591649,95671.0,95670.0,0.02231676]
[1763208634243,0.1591649,95671.0,95670.0,0.00015676]
[1763208635346,0.1591649,95671.0,95670.0,0.02231676]
[1763208635554,0.1591649,95671.0,95670.0,0.04552676]
[1763208644758,0.07527433,95671.0,95670.0,0.51093116]
[1763208644960,0.00021031,95680.0,95679.0,0.04537]
[1763208645262,0.02205031,95680.0,95679.0,0.46259859]
[1763208645448,0.04496031,95680.0,95679.0,0.40617]
[1763208646258,0.02205031,95680.0,95679.0,0.46256182]
[1763208647257,0.02205031,95680.0,95679.0,0.40617]
[1763208647654,0.01376,95696.0,95692.0,0.1045794]
[1763208647959,0.05851,95696.0,95695.0,0.44375367]
[1763208648152,0.05851,95696.0,95695.0,0.44373011]
[1763208648464,0.16941592,95696.0,95695.0,0.40617]
[1763208651162,0.16941592,95696.0,95695.0,0.43431014]
[1763208652276,0.16941592,95696.0,95695.0,0.40617]
[1763208655178,0.16941592,95696.0,95695.0,0.40717]
[1763208655378,0.16941592,95696.0,95695.0,0.40817]
[1763208655778,0.16941592,95696.0,95695.0,0.40717]
[1763208655977,0.16941592,95696.0,95695.0,0.40817]
[1763208656680,0.16941592,95696.0,95695.0,0.40717]
[1763208656881,0.16941592,95696.0,95695.0,0.40817]
[1763208657882,0.16941592,95696.0,95695.0,0.40717]
[1763208658071,0.16941592,95696.0,95695.0,0.40817]
[1763208658486,0.16941592,95696.0,95695.0,0.40717]
[1763208658782,0.16941592,95696.0,95695.0,0.40817]
[1763208659479,0.16941592,95696.0,95695.0,0.40717]
[1763208659679,0.16941592,95696.0,95695.0,0.40817]
[1763208660781,0.16941592,95696.0,95695.0,0.04637]
[1763208660975,0.16941592,95696.0,95695.0,0.40817]
[1763208661176,0.16941592,95696.0,95695.0,0.40717]
[1763208661368,0.16941592,95696.0,95695.0,0.40817]
[1763208661569,0.16941592,95696.0,95695.0,0.40717]
[1763208661868,0.16941592,95696.0,95695.0,0.40817]
[1763208663874,0.16941592,95696.0,95695.0,0.40717]
[1763208664073,0.16941592,95696.0,95695.0,0.40817]
[1763208664477,0.16941592,95696.0,95695.0,0.40717]
[1763208664675,0.16941592,95696.0,95695.0,0.40817]
[1763208666078,0.16941592,95696.0,95695.0,0.40717]
[1763208670083,0.16941592,95696.0,95695.0,0.43529998]
[1763208671284,0.16941592,95696.0,95695.0,0.40717]
[1763208675789,0.11090592,95696.0,95695.0,0.46356182]
[1763208675990,0.11090592,95696.0,95695.0,0.40717]
[1763208676284,0.11121824,95704.0,95703.0,0.04363]
[1763208676490,0.04395676,95705.0,95704.0,0.04363]
[1763208676791,0.16300759,95705.0,95704.0,0.04363]
[1763208677494,0.11920759,95705.0,95704.0,0.05528]
[1763208680195,0.11920759,95705.0,95704.0,0.05628]
[1763208680492,0.11920759,95705.0,95704.0,0.1608473]
[1763208680878,0.11920759,95705.0,95704.0,0.1598473]
[1763208682586,0.14173759,95705.0,95704.0,0.04463]
[1763208683598,0.14173759,95705.0,95704.0,0.04363]
[1763208683989,0.11920759,95705.0,95704.0,0.04363]
[1763208684186,0.11920759,95705.0,95704.0,0.08119866]
[1763208684691,0.00015676,95705.0,95704.0,0.08119866]
[1763208684897,0.00015676,95705.0,95704.0,0.09284866]
[1763208685098,0.05702,95716.0,95715.0,0.04363]
[1763208685297,0.05702,95716.0,95715.0,0.40443]
[1763208685500,0.15618407,95716.0,95715.0,0.40443]
[1763208686893,0.16940407,95716.0,95715.0,0.40443]
[1763208689400,0.16940407,95716.0,95715.0,0.44199866]
[1763208690997,0.16940407,95716.0,95715.0,0.40443]
[1763208691199,0.16940407,95716.0,95715.0,0.44199866]
[1763208692005,0.16940407,95716.0,95715.0,0.40443]
[1763208693094,0.16940407,95716.0,95715.0,0.40543]
[1763208693691,0.16940407,95716.0,95715.0,0.40443]
[1763208693994,0.16940407,95716.0,95715.0,0.40543]
[1763208697308,0.16940407,95716.0,95715.0,0.46184414]
[1763208703110,0.16940407,95716.0,95715.0,0.40543]
[1763208705203,0.15618407,95716.0,95715.0,0.40543]
[1763208707207,0.11238407,95716.0,95715.0,0.40543]
[1763208707912,0.02453803,95720.0,95719.0,0.04613]
[1763208708113,0.02234,95720.0,95719.0,0.40693]
[1763208708315,0.1397031,95720.0,95719.0,0.40693]
[1763208709010,0.1617531,95720.0,95719.0,0.40693]
[1763208709315,0.1397031,95720.0,95719.0,0.40693]
[1763208709511,0.00015676,95725.0,95719.0,0.46335984]
[1763208709809,0.00015676,95725.0,95724.0,0.04613]
[1763208710008,0.00015676,95725.0,95724.0,0.05274]
[1763208710608,0.05834,95740.0,95739.0,0.04613]
[1763208710910,0.17523262,95740.0,95739.0,0.40693]
[1763208711112,0.17523262,95740.0,95739.0,0.44451219]
[1763208712417,0.05834,95740.0,95739.0,0.44451219]
[1763208712614,0.05834,95740.0,95739.0,0.40693]
[1763208713812,0.01395,95744.0,95739.0,0.40693]
[1763208713813,0.04439,95744.0,95739.0,0.3608]
[1763208714118,0.05834,95744.0,95743.0,0.04613]
[1763208714421,0.17767121,95744.0,95743.0,0.04613]
[1763208714606,0.16372121,95744.0,95743.0,0.04613]
[1763208714808,0.04439,95748.0,95747.0,0.04613]
[1763208715111,0.00015668,95749.0,95748.0,0.04613]
[1763208715332,0.00015668,95749.0,95748.0,0.0836651]
[1763208715508,0.16430231,95749.0,95748.0,0.0836651]
[1763208715709,0.16430231,95749.0,95748.0,0.04613]
[1763208716107,0.16430231,95749.0,95748.0,0.08364754]
[1763208717116,0.16430231,95749.0,95748.0,0.04613]
[1763208718615,0.16430231,95749.0,95748.0,0.02306]
[1763208718821,0.16430231,95749.0,95748.0,0.04512]
[1763208720526,0.05966,95748.0,95747.0,0.3608]
[1763208721018,0.1235586,95748.0,95739.0,0.3608]
[1763208721218,0.02108,95740.0,95739.0,0.3608]
[1763208721427,0.02108,95739.0,95738.0,0.00015668]
[1763208721721,0.13364305,95739.0,95738.0,0.00015668]
[1763208728120,0.13364305,95739.0,95738.0,0.04489668]
[1763208728429,0.13364305,95739.0,95738.0,0.40569668]
[1763208728843,0.11256305,95739.0,95738.0,0.40569668]
[1763208731132,0.12718056,95748.0,95747.0,0.04474]
[1763208731427,0.01054,95748.0,95747.0,0.40554]
[1763208731630,0.12022727,95748.0,95747.0,0.40554]
[1763208733131,0.10968727,95748.0,95747.0,0.40554]
[1763208734225,0.12022727,95748.0,95747.0,0.40554]
[1763208734425,0.13076727,95748.0,95747.0,0.44305383]
[1763208734829,0.10968727,95748.0,95747.0,0.44305383]
[1763208735232,0.10968727,95748.0,95747.0,0.40554]
[1763208739041,0.13076727,95748.0,95747.0,0.40554]
[1763208739342,0.13076727,95748.0,95747.0,0.44309083]
[1763208740942,0.10968727,95748.0,95747.0,0.44309083]
[1763208741138,0.10968727,95748.0,95747.0,0.40554]
[1763208743133,0.10968727,95748.0,95747.0,0.45435551]
[1763208744441,0.11200849,95748.0,95747.0,0.45435551]
[1763208747544,0.13308849,95748.0,95747.0,0.45435551]
[1763208749149,0.13308849,95748.0,95747.0,0.40554]
[1763208754439,0.11200849,95748.0,95747.0,0.40554]
[1763208755451,0.11200849,95748.0,95747.0,0.40654]
[1763208756157,0.11200849,95748.0,95747.0,0.46293442]
[1763208756656,0.11200849,95748.0,95747.0,0.40654]
[1763208757154,0.11200849,95748.0,95747.0,0.46293442]
[1763208757952,0.11200849,95748.0,95747.0,0.40654]
[1763208758156,0.11200849,95748.0,95747.0,0.40554]
[1763208758354,0.11200849,95748.0,95747.0,0.40654]
[1763208760253,0.11200849,95748.0,95747.0,0.40554]
[1763208760459,0.11200849,95748.0,95747.0,0.40654]
[1763208762778,0.13308849,95748.0,95747.0,0.40654]
[1763208767178,0.11200849,95748.0,95747.0,0.40654]
[1763208771178,0.11200849,95748.0,95747.0,0.40554]
[1763208771477,0.11200849,95748.0,95747.0,0.40754]
[1763208772674,0.11200849,95748.0,95747.0,0.40654]
[1763208772881,0.11200849,95748.0,95747.0,0.40754]
[1763208779883,0.11200849,95748.0,95747.0,0.48276122]
[1763208780273,0.13308849,95748.0,95747.0,0.48276122]
[1763208780473,0.12254849,95748.0,95747.0,0.48276122]
[1763208780785,0.11200849,95748.0,95747.0,0.48276122]
[1763208780981,0.11200849,95748.0,95747.0,0.40754]
[1763208781377,0.11200849,95748.0,95747.0,0.76834]
[1763208781787,0.11200849,95748.0,95747.0,0.76734]
[1763208782180,0.11200849,95748.0,95747.0,0.76834]
[1763208783083,0.00232122,95748.0,95747.0,0.76834]
[1763208783589,0.005,95756.0,95755.0,0.0456]
[1763208783787,0.005,95756.0,95755.0,0.4064]
[1763208784582,0.00015668,95765.0,95764.0,0.0456]
[1763208784887,0.12104121,95765.0,95764.0,0.4064]
[1763208785383,0.00015668,95765.0,95764.0,0.4064]
[1763208785690,0.02686,95785.0,95784.0,0.0456]
[1763208785886,0.3608,95794.0,95782.0,0.39839273]
[1763208786092,0.02587,95788.0,95787.0,0.0456]
[1763208786388,0.129454,95788.0,95787.0,0.0456]
[1763208786987,0.01244,95788.0,95787.0,0.0456]
[1763208787189,0.01244,95788.0,95787.0,0.46278909]
[1763208787490,0.01244,95788.0,95787.0,0.4064]
[1763208788002,0.01244,95788.0,95787.0,0.46268342]
[1763208788390,0.005,95796.0,95795.0,0.0456]
[1763208788591,0.005,95796.0,95795.0,0.4064]
[1763208788985,0.005,95796.0,95795.0,0.44389491]
[1763208789394,0.005,95796.0,95795.0,0.4064]
[1763208789593,0.006,95796.0,95795.0,0.4064]
[1763208791899,0.006,95796.0,95795.0,0.43447179]
[1763208791900,0.051,95796.0,95795.0,0.43447179]
[1763208792095,0.051,95796.0,95795.0,0.4064]
[1763208795804,0.02799,95796.0,95795.0,0.4064]
[1763208796191,0.006,95796.0,95795.0,0.4064]
[1763208796394,0.02791,95796.0,95795.0,0.4064]
[1763208796997,0.05092,95796.0,95795.0,0.4064]
[1763208797401,0.02791,95796.0,95795.0,0.4064]
[1763208798098,0.02791,95796.0,95795.0,0.41939]
[1763208798297,0.006,95796.0,95795.0,0.41939]
[1763208802296,1.56e-06,95797.0,95795.0,0.41939]
[1763208802602,0.01109588,95825.0,95795.0,0.41939]
[1763208802603,0.01109588,95825.0,95805.0,0.0429]
[1763208802795,0.01109588,95825.0,95805.0,0.4037]
[1763208803996,0.02217095,95806.0,95805.0,0.4037]
[1763208804900,0.00026095,95806.0,95805.0,0.4037]
[1763208805100,0.00026095,95806.0,95805.0,0.41669]
[1763208806489,0.00026095,95806.0,95805.0,0.41769]
[1763208806998,0.00026095,95806.0,95805.0,0.41869]
[1763208807400,0.00026095,95806.0,95805.0,0.41769]
[1763208807600,0.00026095,95806.0,95805.0,0.41869]
[1763208809000,0.00026095,95806.0,95805.0,0.4057]
[1763208809001,0.156485,95806.0,95805.0,0.4057]
[1763208810009,0.156485,95806.0,95805.0,0.4037]
[1763208810206,0.156485,95806.0,95805.0,0.4047]
[1763208810814,0.156485,95806.0,95805.0,0.4057]
[1763208811194,0.156485,95806.0,95805.0,0.4047]
[1763208812413,0.156485,95806.0,95805.0,0.43280775]
[1763208812603,0.156485,95806.0,95805.0,0.4047]
[1763208813310,0.156485,95806.0,95805.0,0.43280775]
[1763208813913,0.110945,95806.0,95805.0,0.4047]
[1763208815209,0.09705761,95806.0,95805.0,0.4047]
[1763208819618,0.14259761,95806.0,95805.0,0.4047]
[1763208825014,0.14259761,95806.0,95805.0,0.41855]